bitfinex/quotes_SOLUSD_20260119
["timestamp","ask_amount","ask_price","bid_price","bid_amount"]
[1768850580795,3.05630936,134.52,134.49,1.48337187]
[1768850580990,2.9720276,134.5,134.46,4.07732441]
[1768850581207,2.9720276,134.54,134.47,1.28337187]
[1768850581394,10.40444751,134.55,134.51,1.28337187]
[1768850587028,28.98490087,134.55,134.51,1.28337187]
[1768850588028,2.9720276,134.54,134.51,1.28337187]
[1768850588229,2.9720276,134.54,134.5,1.28337187]
[1768850590940,10.40531385,134.53,134.5,1.28337187]
[1768850592027,7.43328625,134.53,134.5,1.28337187]
[1768850595741,10.40531385,134.53,134.5,1.28337187]
[1768850596937,7.43328625,134.53,134.5,1.28337187]
[1768850598037,7.43218134,134.55,134.5,1.28337187]
[1768850598226,2.9720276,134.54,134.51,1.28337187]
[1768850600036,10.40501319,134.54,134.51,1.28337187]
[1768850600439,7.43298559,134.54,134.51,1.28337187]
[1768850603328,7.43218134,134.55,134.51,1.28337187]
[1768850603518,10.40420894,134.55,134.51,1.28337187]
[1768850603840,7.43218134,134.55,134.51,1.28337187]
[1768850604043,10.40420894,134.55,134.51,1.28337187]
[1768850605834,7.43218134,134.55,134.51,1.28337187]
[1768850606137,10.40420894,134.55,134.51,1.28337187]
[1768850606845,10.40420894,134.55,134.51,8.7176587]
[1768850607023,7.43218134,134.55,134.52,1.32422226]
[1768850609441,10.40420894,134.55,134.52,1.32422226]
[1768850613942,7.43218134,134.55,134.52,1.32422226]
[1768850614145,10.40420894,134.55,134.52,1.32422226]
[1768850616446,7.43218134,134.55,134.52,1.32422226]
[1768850618353,10.40420894,134.55,134.52,1.32422226]
[1768850621259,2.9720276,134.54,134.51,1.27254934]
[1768850621559,2.9720276,134.54,134.5,1.27254934]
[1768850622846,2.9720276,134.53,134.5,1.27254934]
[1768850625046,10.40530352,134.54,134.5,1.27254934]
[1768850632963,10.40560794,134.54,134.5,1.27254934]
[1768850633862,26.68560794,134.54,134.51,1.35905838]
[1768850634063,23.71327592,134.54,134.51,1.35905838]
[1768850635357,23.71232471,134.55,134.51,1.35905838]
[1768850638667,26.68465673,134.55,134.51,1.35905838]
[1768850641346,10.40465673,134.55,134.52,1.35905838]
[1768850652882,7.43232471,134.55,134.52,1.35905838]
[1768850662279,10.40465673,134.55,134.52,1.35905838]
[1768850666188,7.43232471,134.55,134.52,1.35905838]
[1768850666386,10.40465673,134.55,134.52,1.35905838]
[1768850675221,7.43232471,134.55,134.52,1.35905838]
[1768850683524,2.97233202,134.56,134.53,1.27565356]
[1768850683712,16.28,134.56,134.53,1.27565356]
[1768850683917,19.25233202,134.56,134.53,1.27565356]
[1768850684130,19.25233202,134.56,134.53,1.24565357]
[1768850686733,26.68442279,134.56,134.53,1.24565357]
[1768850687414,2.97233202,134.55,134.53,1.24565357]
[1768850688733,10.40487037,134.55,134.53,1.24565357]
[1768850689120,10.40487037,134.55,134.53,1.21565358]
[1768850689325,2.97233202,134.54,134.5,2.97233202]
[1768850690019,28.98532373,134.55,134.49,10.40758055]
[1768850691036,28.98532373,134.55,134.51,1.27565356]
[1768850693137,28.98476205,134.55,134.51,1.27565356]
[1768850695041,26.01299171,134.55,134.51,1.27565356]
[1768850695243,10.40430869,134.55,134.51,1.27565356]
[1768850695620,7.43253835,134.55,134.51,4.2474239]
[1768850695823,7.43253835,134.55,134.52,1.33256378]
[1768850696939,7.43253835,134.55,134.52,4.30433412]
[1768850697143,7.43253835,134.55,134.53,1.33256378]
[1768850703448,10.40339935,134.56,134.53,1.33256378]
[1768850705444,7.43162901,134.56,134.53,1.33256378]
[1768850716450,23.71135985,134.57,134.54,1.33256378]
[1768850716763,26.68251173,134.58,134.54,1.33256378]
[1768850727771,23.71074139,134.58,134.54,4.30433412]
[1768850727972,23.71074139,134.58,134.55,1.30228429]
[1768850732976,7.43074139,134.58,134.55,1.30228429]
[1768850733367,23.71025544,134.59,134.56,1.30228429]
[1768850738270,2.97177034,134.61,134.57,1.30228429]
[1768850738666,26.68008708,134.62,134.58,1.30228429]
[1768850739568,23.70831674,134.62,134.58,2.97177034]
[1768850739781,7.42831674,134.62,134.59,1.30228429]
[1768850740069,7.42831674,134.62,134.59,1.2722843]
[1768850740476,7.42828532,134.63,134.59,2.97177034]
[1768850741272,10.40005566,134.63,134.58,10.40202136]
[1768850741886,10.40005566,134.63,134.59,1.22600292]
[1768850743481,10.40005566,134.63,134.59,7.42989052]
[1768850743675,10.40005566,134.63,134.6,1.22600292]
[1768850743879,10.40005566,134.63,134.6,1.19600293]
[1768850744787,7.42828532,134.63,134.6,1.19600293]
[1768850751592,7.42828532,134.63,134.6,4.16777327]
[1768850751795,7.42828532,134.63,134.6,4.19777326]
[1768850752895,7.42828532,134.63,134.6,1.22600292]
[1768850753393,10.40005566,134.63,134.6,1.22600292]
[1768850753590,2.97177034,134.62,134.59,1.23711098]
[1768850754896,2.96841503,134.62,134.59,1.23711098]
[1768850755288,25.99769778,134.63,134.59,1.23711098]
[1768850755600,2.96841503,134.62,134.59,1.20711099]
[1768850755788,10.39706161,134.62,134.59,1.20711099]
[1768850755981,2.96841503,134.61,134.56,10.39993075]
[1768850757583,2.96841503,134.61,134.57,1.23711098]
[1768850758795,7.4294205,134.6,134.57,1.23711098]
[1768850758993,10.39783553,134.6,134.57,1.23711098]
[1768850760601,7.4294205,134.6,134.57,1.23711098]
[1768850760784,26.67753115,134.61,134.57,1.23711098]
[1768850762984,10.39814759,134.6,134.57,1.23711098]
[1768850765609,10.39814759,134.6,134.56,8.66866478]
[1768850765789,10.39814759,134.6,134.57,1.23711098]
[1768850766810,7.42973256,134.6,134.57,1.23711098]
[1768850767110,10.39814759,134.6,134.57,1.23711098]
[1768850773614,2.96841503,134.59,134.57,1.23711098]
[1768850775099,10.39852819,134.59,134.57,1.23711098]
[1768850775305,2.96841503,134.58,134.57,1.23711098]
[1768850776813,2.96841503,134.58,134.55,1.23711098]
[1768850778191,7.43107676,134.57,134.53,7.43325223]
[1768850778396,7.43107676,134.57,134.53,1.23711098]
[1768850778397,2.96841503,134.56,134.53,1.23711098]
[1768850779601,2.96841503,134.56,134.54,1.23711098]
[1768850783723,2.96841503,134.55,134.54,1.23711098]
[1768850783910,2.96841503,134.56,134.54,1.23711098]
[1768850791030,7.43107676,134.57,134.54,1.23711098]
[1768850791211,2.96841503,134.56,134.54,1.23711098]
[1768850791412,10.39949179,134.57,134.54,1.23711098]
[1768850793121,26.00735666,134.58,134.54,1.23711098]
[1768850793330,2.96841503,134.57,134.54,1.23711098]
[1768850795217,2.96841503,134.56,134.54,1.23711098]
[1768850798541,2.96841503,134.55,134.52,1.21096875]
[1768850799012,2.96841503,134.54,134.52,1.21096875]
[1768850802445,18.57807005,134.57,134.52,1.21096875]
[1768850802663,2.96841503,134.54,134.52,1.21096875]
[1768850806832,2.96841503,134.55,134.52,1.21096875]
[1768850807018,2.96841503,134.54,134.52,1.21096875]
[1768850810342,2.96841503,134.55,134.52,1.21096875]
[1768850812645,10.40071063,134.55,134.52,1.21096875]
[1768850813446,2.96841503,134.54,134.52,1.21096875]
[1768850815027,2.97213839,134.54,134.52,1.21096875]
[1768850815246,2.97213839,134.55,134.52,1.21096875]
[1768850822453,10.40423801,134.56,134.52,1.21096875]
[1768850822756,7.43209962,134.56,134.52,1.21096875]
[1768850822950,10.40423801,134.56,134.52,1.21096875]
[1768850824843,7.43052459,134.58,134.53,1.18758065]
[1768850825155,10.40266298,134.58,134.53,1.18758065]
[1768850827558,10.403614,134.57,134.53,1.18758065]
[1768850828267,2.97213839,134.55,134.53,1.18758065]
[1768850828452,26.00916751,134.57,134.53,1.18758065]
[1768850828651,2.97213839,134.55,134.53,1.18758065]
[1768850831067,2.91213839,134.55,134.53,1.18758065]
[1768850831564,2.85213834,134.55,134.53,1.18758065]
[1768850834244,2.79213834,134.55,134.53,1.18758065]
[1768850835470,10.4041468,134.56,134.53,1.18758065]
[1768850840277,21.54983029,134.57,134.53,1.18758065]
[1768850842384,28.98090705,134.57,134.53,1.18758065]
[1768850842760,2.97213839,134.56,134.53,1.18758065]
[1768850845392,10.34414296,134.56,134.53,1.18758065]
[1768850867107,2.97213839,134.56,134.53,1.18758065]
[1768850873107,10.40431973,134.55,134.53,1.18758065]
[1768850873607,7.43218134,134.55,134.53,1.18758065]
[1768850874500,2.97213839,134.55,134.53,1.18758065]
[1768850874888,2.97183517,134.55,134.53,1.18758065]
[1768850876601,2.97183517,134.54,134.51,1.22173713]
[1768850878207,2.97183517,134.53,134.5,1.22173713]
[1768850880305,10.40527725,134.53,134.5,1.22173713]
[1768850882385,10.40456892,134.54,134.5,1.22173713]
[1768850883002,2.97183517,134.53,134.5,1.22173713]
[1768850886008,10.40519575,134.53,134.5,1.22173713]
[1768850888997,10.40456892,134.54,134.5,1.22173713]
[1768850889816,7.43273375,134.54,134.5,1.22173713]
[1768850890106,10.40456892,134.54,134.5,1.22173713]
[1768850895413,10.40428438,134.55,134.51,1.22173713]
[1768850903234,34.85940809,134.56,134.51,1.22173713]
[1768850903235,10.40488008,134.54,134.51,1.22173713]
[1768850903810,2.97183517,134.53,134.51,1.22173713]
[1768850904028,2.97183517,134.53,134.49,1.13184012]
[1768850906834,10.40550315,134.53,134.49,1.13184012]
[1768850907030,28.98871878,134.53,134.49,1.13184012]
[1768850907235,2.97183517,134.52,134.49,1.13184012]
[1768850908848,10.40602267,134.52,134.49,1.13184012]
[1768850909839,28.99061975,134.52,134.48,1.13184012]
[1768850910032,2.97183517,134.51,134.48,1.13184012]
[1768850912948,26.02072667,134.51,134.47,1.13184012]
[1768850913149,2.97183517,134.5,134.47,1.13184012]
[1768850914629,7.43549706,134.49,134.47,1.13184012]
[1768850920158,10.40704543,134.5,134.47,1.13184012]
[1768850927455,10.40648319,134.51,134.47,1.13184012]
[1768850928462,2.97183517,134.5,134.47,1.13184012]
[1768850929064,2.97183517,134.49,134.47,1.13184012]
[1768850929466,10.40738913,134.49,134.46,1.30438005]
[1768850932969,7.43555396,134.49,134.46,1.30438005]
[1768850933170,10.4070091,134.5,134.46,1.30438005]
[1768850934874,10.40934512,134.5,134.46,1.30438005]
[1768850938372,7.43517393,134.5,134.46,1.30438005]
[1768850938552,7.43517393,134.5,134.47,4.17341841]
[1768850938757,7.43517393,134.5,134.47,1.19924722]
[1768850939757,7.37517393,134.5,134.47,1.19924722]
[1768850940655,10.34934512,134.5,134.47,1.19924722]
[1768850941858,7.37517393,134.5,134.47,1.19924722]
[1768850942676,26.68879312,134.51,134.47,1.19924722]
[1768850942879,10.40879312,134.51,134.47,1.19924722]
[1768850945471,16.28,134.52,134.47,1.19924722]
[1768850945676,2.97417119,134.51,134.47,1.19924722]
[1768850947087,19.25417119,134.51,134.47,1.19924722]
[1768850950589,26.68905053,134.51,134.47,1.19924722]
[1768850961298,45.27502926,134.51,134.47,1.19924722]
[1768850962499,46.25703376,134.51,134.46,0.2]
[1768850963304,43.28286257,134.51,134.46,0.2]
[1768850963491,46.25703376,134.51,134.46,0.2]
[1768850964490,7.43549706,134.49,134.46,0.2]
[1768850964707,7.37549702,134.49,134.46,0.2]
[1768850968300,7.31549702,134.49,134.46,3.17417119]
[1768850968598,19.7177954,134.5,134.46,3.17417119]
[1768850970586,7.43549706,134.49,134.46,3.66499025]
[1768850970785,7.37549702,134.49,134.46,3.66499025]
[1768850972010,7.37549702,134.49,134.46,0.69081906]
[1768850973110,25.96423967,134.49,134.46,0.69081906]
[1768850976994,1.12917936,134.48,134.45,0.2]
[1768850977790,4.10335055,134.48,134.45,0.2]
[1768850977990,1.12917936,134.47,134.45,0.2]
[1768850978512,7.43715603,134.46,134.45,1e-08]
[1768850978706,8.56633539,134.46,134.45,1e-08]
[1768850979007,21.56541184,134.48,134.45,1e-08]
[1768850980000,7.43660295,134.47,134.45,1e-08]
[1768850981311,8.71805077,134.47,134.44,7.05303196]
[1768850982092,8.71805077,134.47,134.44,4.07886077]
[1768850982292,8.71805077,134.47,134.44,7.05303196]
[1768850982813,8.71805077,134.47,134.44,7.18193373]
[1768850984916,8.71805077,134.47,134.44,4.20776254]
[1768850985119,8.71805077,134.47,134.44,7.18193373]
[1768850985718,8.71805077,134.47,134.44,4.20776254]
[1768850985912,8.71805077,134.47,134.44,7.18193373]
[1768850993124,8.71805077,134.47,134.45,4.0]
[1768851000330,11.69292105,134.47,134.45,4.0]
[1768851000529,2.97487028,134.46,134.44,4.07886077]
[1768851000709,26.02811034,134.47,134.4,0.52896412]
[1768851000710,1.24949782,134.44,134.4,0.52896412]
[1768851000914,4.2243681,134.43,134.4,0.52896412]
[1768851001109,1.24949782,134.43,134.4,0.52896412]
[1768851001830,1.24949782,134.46,134.41,0.3383007]
[1768851002135,1.24949782,134.44,134.41,0.3383007]
[1768851002635,7.43881574,134.43,134.41,0.3383007]
[1768851004822,8.68831356,134.43,134.4,0.56567191]
[1768851008332,1.24949782,134.42,134.4,0.2]
[1768851009033,4.2243681,134.41,134.39,0.2]
[1768851009617,1.24949782,134.41,134.39,0.2]
[1768851010330,8.68956237,134.41,134.39,0.2]
[1768851010634,8.68889624,134.42,134.39,3.59251927]
[1768851011333,1.24949782,134.44,134.42,0.41764899]
[1768851011942,1.24949782,134.44,134.41,0.42596693]
[1768851012633,8.68798736,134.44,134.41,0.42596693]
[1768851013928,8.68798736,134.44,134.41,3.40083721]
[1768851014138,8.68798736,134.44,134.41,0.42596693]
[1768851014529,7.43848954,134.44,134.41,0.42596693]
[1768851014840,8.68798736,134.44,134.41,3.40083721]
[1768851015021,8.68798736,134.44,134.41,0.42596693]
[1768851016836,11.66285764,134.44,134.41,0.42596693]
[1768851020626,8.68798736,134.44,134.41,0.42596693]
[1768851026143,1.47107327,134.43,134.4,0.53986354]
[1768851027549,8.90997295,134.43,134.4,0.53986354]
[1768851029051,8.90997295,134.43,134.4,3.51473382]
[1768851031954,1.47107327,134.43,134.4,10.95503593]
[1768851034062,1.47107327,134.46,134.43,0.59300377]
[1768851034265,2.97487028,134.48,134.43,3.53787406]
[1768851034432,1.47107327,134.47,134.43,3.53787406]
[1768851037239,1.47107327,134.47,134.43,10.97643134]
[1768851039735,1.47107327,134.47,134.43,10.41342756]
[1768851039935,1.47107327,134.47,134.44,0.59982326]
[1768851041657,1.47107327,134.47,134.44,3.57469354]
[1768851042241,1.47107327,134.47,134.43,7.43855728]
[1768851042242,1.48324449,134.46,134.43,0.61746027]
[1768851053647,1.48324449,134.46,134.43,3.59233055]
[1768851054250,1.48324449,134.46,134.43,11.03112036]
[1768851054668,1.48324449,134.46,134.43,8.05625008]
[1768851054971,1.48324449,134.46,134.43,11.03112036]
[1768851058877,1.48324449,134.46,134.43,11.03120476]
[1768851062076,1.58607924,134.47,134.44,0.72519599]
[1768851062373,1.58607924,134.47,134.44,3.70015067]
[1768851062992,1.58607924,134.49,134.46,3.70465769]
[1768851069783,9.02162178,134.49,134.46,3.70465769]
[1768851073888,1.58607924,134.48,134.44,0.77599107]
[1768851074072,1.58607924,134.48,134.44,3.75094575]
[1768851076704,1.58607924,134.47,134.44,3.75094575]
[1768851077382,1.58607924,134.47,134.44,0.77599107]
[1768851077693,1.58607924,134.47,134.44,3.75094575]
[1768851081790,1.58607924,134.47,134.45,0.8061465]
[1768851081987,9.02268013,134.48,134.45,0.8061465]
[1768851082384,1.58607924,134.47,134.44,2.97495468]
[1768851082574,1.58607924,134.47,134.44,3.78467841]
[1768851084191,1.58607924,134.47,134.44,11.22293942]
[1768851084385,1.58607924,134.47,134.45,0.81675538]
[1768851084593,1.51873405,134.48,134.45,3.79171006]
[1768851086299,1.51873405,134.48,134.45,11.22938972]
[1768851087182,1.51873405,134.48,134.45,3.79171006]
[1768851088087,1.51873405,134.48,134.45,11.22938586]
[1768851089295,1.51873405,134.48,134.46,2.97495468]
[1768851089502,1.51873405,134.5,134.47,0.83690132]
[1768851089695,1.51873405,134.5,134.47,3.811856]
[1768851092506,1.51873405,134.5,134.47,0.83690132]
[1768851092704,1.51873405,134.5,134.47,3.811856]
[1768851095006,8.95416607,134.5,134.47,3.811856]
[1768851096193,1.51873405,134.49,134.45,2.97495468]
[1768851096393,1.51873405,134.48,134.44,3.83065283]
[1768851096902,8.955337,134.47,134.44,3.83065283]
[1768851099307,8.89533701,134.47,134.44,3.83065283]
[1768851102104,8.83533702,134.47,134.44,3.83065283]
[1768851102488,8.83533702,134.47,134.45,0.87604284]
[1768851103005,8.83533702,134.47,134.44,2.97495468]
[1768851103197,8.83533702,134.47,134.44,3.85377192]
[1768851105695,8.83533702,134.47,134.44,0.87881724]
[1768851106811,1.55377159,134.45,134.41,0.8895998]
[1768851106995,1.55377159,134.44,134.41,0.8895998]
[1768851108513,7.43881574,134.43,134.41,0.8895998]
[1768851109495,7.3788157,134.43,134.41,0.8895998]
[1768851110910,10.35377038,134.43,134.41,0.8895998]
[1768851115414,10.35377038,134.43,134.39,0.2]
[1768851115715,4.6113549,134.42,134.39,1.11447373]
[1768851116900,12.05079744,134.42,134.39,1.11447373]
[1768851118112,10.41439722,134.42,134.39,1.11447373]
[1768851118317,1.63640022,134.41,134.39,1.11447373]
[1768851118703,4.6113549,134.41,134.39,1.11447373]
[1768851118897,4.61445896,134.4,134.38,0.2]
[1768851119104,2.97805874,134.39,134.38,1e-08]
[1768851120026,2.97805874,134.39,134.37,1.12139259]
[1768851120319,1.63640022,134.37,134.36,0.2]
[1768851120505,4.55445897,134.37,134.35,1.1236461]
[1768851121221,1.57640023,134.37,134.35,1.1236461]
[1768851121402,10.4200981,134.38,134.35,1.1236461]
[1768851122607,12.05649832,134.38,134.35,1.1236461]
[1768851123417,9.07843958,134.38,134.35,1.1236461]
[1768851123625,12.05649832,134.38,134.35,1.1236461]
[1768851124837,9.01843959,134.38,134.35,1.1236461]
[1768851126018,7.38203937,134.38,134.35,1.1236461]
[1768851126530,10.36009811,134.38,134.35,1.1236461]
[1768851127030,9.01843959,134.38,134.35,1.1236461]
[1768851129628,8.9584396,134.38,134.35,1.1236461]
[1768851131532,11.93649834,134.38,134.35,1.1236461]
[1768851136143,1.63640022,134.37,134.35,0.2]
[1768851136333,2.97805874,134.36,134.35,1e-08]
[1768851136523,2.97805874,134.36,134.32,0.2]
[1768851136732,2.97805874,134.34,134.32,0.2]
[1768851137733,2.97805874,134.34,134.32,1e-08]
[1768851138317,9.08075367,134.33,134.32,1e-08]
[1768851138543,12.05881241,134.33,134.32,1e-08]
[1768851139222,9.08075367,134.33,134.32,1e-08]
[1768851142343,12.05881241,134.33,134.32,1e-08]
[1768851142648,1.63640022,134.32,134.3,0.2]
[1768851142838,9.08154668,134.32,134.3,0.2]
[1768851143446,1.64648143,134.31,134.29,0.2]
[1768851143647,4.62454017,134.31,134.29,1e-08]
[1768851143943,1.64648143,134.29,134.26,1.09360134]
[1768851144142,4.62454017,134.29,134.26,1.09360134]
[1768851144447,1.64648143,134.29,134.26,1.09360134]
[1768851145031,12.07122708,134.29,134.26,1.09360134]
[1768851146156,9.09316834,134.29,134.26,1.09360134]
[1768851153351,12.07122708,134.29,134.26,1.09360134]
[1768851154551,1.64648143,134.27,134.24,1.11447415]
[1768851154863,1.64648143,134.24,134.22,0.2]
[1768851155161,4.56454018,134.24,134.22,0.2]
[1768851155536,12.01389034,134.24,134.22,0.2]
[1768851156560,2.97805874,134.23,134.21,0.2]
[1768851156757,2.97805874,134.22,134.2,0.2]
[1768851156941,4.62454017,134.22,134.2,0.2]
[1768851157450,1.64648143,134.21,134.2,0.2]
[1768851160136,9.09737575,134.22,134.2,0.2]
[1768851160851,9.11164691,134.23,134.2,4.36503297]
[1768851161240,1.66155047,134.23,134.2,4.36503297]
[1768851161439,9.11111354,134.24,134.21,4.16503297]
[1768851162654,9.11111354,134.24,134.21,1.18697423]
[1768851163664,9.11111354,134.24,134.21,4.16503297]
[1768851164168,18.61862215,134.28,134.24,1.19259171]
[1768851164461,1.66155047,134.27,134.24,4.17065045]
[1768851164760,1.66155047,134.27,134.25,2.97805874]
[1768851165157,9.10923051,134.27,134.25,2.97805874]
[1768851165354,9.10923051,134.27,134.24,1.19259171]
[1768851165557,9.10923051,134.27,134.25,2.97805874]
[1768851166338,9.10923051,134.27,134.26,2.97805874]
[1768851169862,20.28017262,134.28,134.26,2.97805874]
[1768851171470,27.72729802,134.28,134.26,2.97805874]
[1768851172865,27.72729802,134.28,134.25,2.97805874]
[1768851176075,9.10867587,134.28,134.25,2.97805874]
[1768851178080,9.10867587,134.28,134.25,4.19599461]
[1768851178253,9.096077,134.29,134.27,2.97805874]
[1768851178452,9.096077,134.29,134.28,2.97805874]
[1768851178683,9.096077,134.29,134.27,2.97805874]
[1768851179590,1.64936085,134.28,134.26,2.97805874]
[1768851179874,26.06314328,134.29,134.26,2.97805874]
[1768851180375,26.06314328,134.29,134.25,2.97805874]
[1768851180673,26.06314328,134.29,134.26,2.97805874]
[1768851180878,26.06314328,134.29,134.26,2.9825284]
[1768851181064,26.06314328,134.29,134.25,1.76869367]
[1768851181262,26.06314328,134.29,134.26,2.9825284]
[1768851181484,18.61642713,134.29,134.26,2.9825284]
[1768851181669,1.64936085,134.28,134.26,2.9825284]
[1768851182173,7.44601638,134.3,134.26,4.75122207]
[1768851182476,1.64936085,134.29,134.27,2.9825284]
[1768851183576,9.09620824,134.29,134.26,1.76869367]
[1768851183761,9.09620824,134.29,134.26,4.75122207]
[1768851186973,9.09620824,134.29,134.26,1.76869367]
[1768851187276,9.09620824,134.29,134.26,4.75122207]
[1768851189001,9.09620824,134.29,134.26,1.76869367]
[1768851189169,9.09620824,134.29,134.26,4.75122207]
[1768851190666,1.64936085,134.29,134.27,1.76869367]
[1768851191405,7.44626393,134.3,134.27,1.76869367]
[1768851191859,9.09562478,134.3,134.27,1.76869367]
[1768851192301,1.64936085,134.3,134.27,4.75122207]
[1768851192484,1.64936085,134.37,134.3,1.76869367]
[1768851192664,1.64936085,134.34,134.28,1.76869367]
[1768851192859,1.64936085,134.33,134.29,4.75122207]
[1768851193269,9.09398523,134.33,134.29,1.76869367]
[1768851193491,1.64936085,134.3,134.27,1.76869367]
[1768851193790,4.63188925,134.3,134.27,1.76869367]
[1768851194288,4.63188925,134.3,134.25,2.9825284]
[1768851194289,1.64936085,134.28,134.25,1.76869367]
[1768851195287,1.64936085,134.28,134.25,9.21736248]
[1768851197491,1.64936085,134.28,134.25,1.76869367]
[1768851197667,4.63188925,134.28,134.25,1.76869367]
[1768851199596,4.63188925,134.27,134.24,9.21787384]
[1768851200291,4.63188925,134.27,134.25,7.44874196]
[1768851202589,4.63188925,134.27,134.24,9.21780616]
[1768851205895,4.66715995,134.28,134.25,1.69267784]
[1768851207299,4.66715995,134.28,134.25,9.14144235]
[1768851208096,1.68463155,134.28,134.25,9.14144235]
[1768851208296,4.66715995,134.28,134.25,9.14144235]
[1768851209300,2.9825284,134.27,134.25,9.14144235]
[1768851209503,2.92252841,134.27,134.25,9.14144235]
[1768851210585,4.66715995,134.28,134.25,9.14144235]
[1768851211504,4.66715995,134.28,134.25,1.69267784]
[1768851211713,2.9825284,134.28,134.25,1.69267784]
[1768851211888,1.68463155,134.27,134.25,1.69267784]
[1768851212084,1.62463156,134.27,134.25,1.69267784]
[1768851212381,1.62463156,134.27,134.25,9.14142098]
[1768851212583,2.9825284,134.28,134.26,1.69267784]
[1768851212807,2.9825284,134.28,134.25,9.14142098]
[1768851214091,4.66715995,134.28,134.25,9.14142098]
[1768851214410,1.68463155,134.28,134.25,9.14142098]
[1768851214609,4.66715995,134.28,134.26,1.69267784]
[1768851214797,2.9825284,134.28,134.26,1.69267784]
[1768851215105,4.66715995,134.28,134.26,1.69267784]
[1768851215296,4.66715995,134.28,134.25,1.69267784]
[1768851215610,2.9825284,134.29,134.26,1.69267784]
[1768851215797,1.68463155,134.3,134.26,1.69267784]
[1768851215997,4.66715995,134.3,134.26,1.69267784]
[1768851217409,4.66715995,134.3,134.27,1.69267784]
[1768851218612,4.66715995,134.3,134.27,9.14028791]
[1768851219908,4.66715995,134.3,134.27,1.69267784]
[1768851220690,1.6263473,134.29,134.27,1.69267784]
[1768851221309,1.6263473,134.28,134.26,9.16529536]
[1768851221496,4.54887571,134.28,134.25,63.21731327]
[1768851222302,4.54887571,134.28,134.25,70.66606087]
[1768851224503,4.48887572,134.28,134.25,70.66606087]
[1768851224692,4.42887573,134.28,134.25,70.66606087]
[1768851225012,1.44634733,134.28,134.25,70.66606087]
[1768851225814,10.42919822,134.29,134.26,1.71731327]
[1768851226808,12.05554552,134.29,134.26,1.71731327]
[1768851229309,1.6263473,134.28,134.26,1.71731327]
[1768851231813,4.6088757,134.29,134.26,9.16546093]
[1768851235622,1.6263473,134.29,134.26,9.16546093]
[1768851235922,4.6088757,134.29,134.26,9.16546093]
[1768851236425,1.6263473,134.29,134.26,9.16546093]
[1768851236721,4.6088757,134.29,134.26,9.16546093]
[1768851240914,4.6094173,134.29,134.26,9.16546093]
[1768851241307,1.6263473,134.29,134.26,9.16546093]
[1768851241526,2.98307,134.3,134.27,1.79492428]
[1768851241703,4.64457048,134.3,134.27,1.79492428]
[1768851242425,1.66150048,134.3,134.27,1.79492428]
[1768851242622,4.64457048,134.32,134.28,1.79492428]
[1768851243521,4.64457048,134.32,134.28,7.44692683]
[1768851243731,4.64457048,134.32,134.29,1.79492428]
[1768851245829,1.66150048,134.33,134.3,1.79492428]
[1768851246446,1.66150048,134.34,134.3,4.77799428]
[1768851246625,1.66150048,134.34,134.31,1.79492428]
[1768851248737,9.10537219,134.34,134.31,1.79492428]
[1768851250230,12.08844219,134.34,134.31,1.79492428]
[1768851251128,9.10537219,134.34,134.31,1.79492428]
[1768851251434,4.64457048,134.34,134.31,1.79492428]
[1768851253032,1.66150048,134.34,134.31,9.24025732]
[1768851254914,1.66150048,134.37,134.32,1.79492428]
[1768851255121,1.66150048,134.36,134.33,1.79492428]
[1768851255833,1.66150048,134.36,134.32,1.79492428]
[1768851257929,1.66150048,134.36,134.32,9.23949247]
[1768851258611,1.66150048,134.36,134.32,12.22256247]
[1768851259515,1.66150048,134.36,134.33,1.79492428]
[1768851260133,1.66150048,134.36,134.33,9.23915709]
[1768851260320,1.66150048,134.36,134.34,1.79492428]
[1768851269840,2.98307,134.37,134.34,1.79492428]
[1768851270033,2.98307,134.38,134.34,9.23849162]
[1768851270228,10.42467731,134.38,134.34,9.23849162]
[1768851270431,10.42434879,134.39,134.35,1.67236401]
[1768851270634,1.79647159,134.38,134.35,1.64236401]
[1768851274650,1.79647159,134.39,134.36,1.67236401]
[1768851274843,1.79647159,134.39,134.36,1.64236401]
[1768851276248,1.79647159,134.38,134.36,1.64236401]
[1768851279753,1.79647159,134.39,134.36,1.64236401]
[1768851279957,4.77954159,134.39,134.36,1.64236401]
[1768851281258,1.79647159,134.39,134.36,1.64236401]
[1768851281555,4.77954159,134.39,134.36,1.64236401]
[1768851281734,1.79647159,134.39,134.36,1.64236401]
[1768851284158,1.79647159,134.39,134.36,1.64236401]
[1768851289257,12.22058203,134.39,134.36,1.64236401]
[1768851291565,1.807075,134.38,134.36,1.64236401]
[1768851291772,4.790145,134.38,134.35,1.66137413]
[1768851292368,1.807075,134.37,134.35,1.66137413]
[1768851293267,1.807075,134.37,134.34,7.44356601]
[1768851293451,1.807075,134.37,134.34,9.2316211]
[1768851294547,1.807075,134.37,134.35,1.78805509]
[1768851295368,1.6320464,134.39,134.37,1.78805509]
[1768851296668,1.6320464,134.4,134.37,1.78805509]
[1768851297052,1.6320464,134.39,134.37,1.78805509]
[1768851300455,1.6320464,134.4,134.37,1.78805509]
[1768851301956,1.6320464,134.39,134.37,1.78805509]
[1768851303690,1.6320464,134.39,134.36,1.78805509]